Cogmind - Beta 13 @@@ ROGUE MODE // 2024.07.16 @ 20:26:34 Player: Sgt. SmokeWeed Result: Destroyed by 86-CAP(R) with Subdweller Shrapnel Launcher Performance ------------- Evolutions (0) 0 Regions Visited (3) 600 Robots Destroyed (12) 60 Value Destroyed (362) 362 Prototype IDs (0) 0 Alien Tech Used (0) 0 Bonus (35) 35 TOTAL SCORE: 1057 Bonus ------- Follower Combat Kills 35 Cogmind --------- Core Integrity 0/250 Matter 285/300 Energy 160/160 System Corruption 1% Temperature Cool (0) Movement Walking (120) Location -10/Subcaves Parts ------- > --- POWER (1) -------- Light Nuclear Core > --- PROPULSION (2) --- Aluminum Leg > --- UTILITY (2) ------ (None) > --- WEAPON (2) ------- Assault Rifle > --- INVENTORY (5) ---- (None) Peak State ------------ > --- POWER ------------ Light Nuclear Core > --- PROPULSION ------- Aluminum Leg Aluminum Leg > --- UTILITY ---------- (None) > --- WEAPON ----------- Assault Rifle Light Cannon > --- INVENTORY -------- (None) [Rating: 7] Favorites ----------- Power Light Nuclear Core Engine Ion Engine Power Core Light Nuclear Core Propulsion Aluminum Leg Leg Aluminum Leg Wheel Wheel Utility None Weapon Assault Rifle Ballistic Gun Assault Rifle Ballistic Cannon Light Cannon Build | -11 -10 -10 -10 ------- Run | Yrd Mat Min Sub Slots Evolved . | . . . . Power . | . . . . Propulsion . | . . . . Utility . | . . . . Weapon . | . . . . Parts Attached 11 | 7 1 3 . Power 2 | 1 . 1 . Engine 1 | 1 . . . Core 1 | . . 1 . Reactor . | . . . . Propulsion 6 | 4 . 2 . Treads . | . . . . Leg 4 | 2 . 2 . Wheel 2 | 2 . . . Hover . | . . . . Flight . | . . . . Utility . | . . . . Device . | . . . . Storage . | . . . . Processor . | . . . . Hackware . | . . . . Protection . | . . . . Artifact . | . . . . Weapon 3 | 2 1 . . Energy Gun . | . . . . Energy Cannon . | . . . . Ballistic Gun 2 | 2 . . . Ballistic Cannon 1 | . 1 . . Launcher . | . . . . Special Weapon . | . . . . Impact Weapon . | . . . . Slashing Weapon . | . . . . Piercing Weapon . | . . . . Special Melee Weapon . | . . . . Unidentified Prototypes . | . . . . Parts Lost 4 | . . 2 2 Power . | . . . . Propulsion 3 | . . 2 1 Utility . | . . . . Weapon 1 | . . . 1 Highest Loss Streak 2 | . . 2 2 To Critical Strikes . | . . . . Average Slot Usage (%) 66 | . 71 65 67 Engine 5 | . 14 3 . Core 8 | . . 10 14 Leg 17 | . . 21 26 Wheel 7 | . 28 1 . Ballistic Gun 14 | . 14 14 14 Ballistic Cannon 13 | . 13 14 12 Naked Turns . | . . . . Heaviest Build 10 | 8 10 10 10 Greatest Support 20 | 20 20 20 20 Greatest Overweight (x) 3 | . . 3 . Average Overweight (x) . | . . . . Largest Inventory Capacity 5 | 5 5 5 5 Average Capacity 5 | 5 5 5 5 Most Carried . | . . . . Average Carried . | . . . . Final Capacity 5 | 5 5 5 5 Final Carried . | . . . . Class Distribution -------------------- 100% | Mutant Dominant Class ---------------- Mutant | -10/Materials Mutant | -10/Mines Mutant | -10/Subcaves Resources | -11 -10 -10 -10 ----------- Run | Yrd Mat Min Sub Matter Collected 615 | 268 145 202 . Remotely . | . . . . Salvage Created 359 | . 199 160 . Parts 27 | . 15 12 . Haulers Intercepted 2 | . 2 . . Recyclers Shooed . | . . . . Parts Field Recycled . | . . . . Retrieved Matter . | . . . . Parts Self-Destructed . | . . . . Prevented . | . . . . Kills | -11 -10 -10 -10 ------- Run | Yrd Mat Min Sub Combat Hostiles Destroyed 8 | . 3 5 . Guns 3 | . . 3 . Cannons 4 | . 3 1 . AOE 1 | . . 1 . Classes Destroyed 4 | . 3 1 . Worker 1 | . . 1 . Hauler 2 | . 2 . . Watcher 1 | . 1 . . Grunt 8 | . 3 5 . Best Kill Streak 3 | . 3 3 . Combat Bots Only 2 | . 2 2 . Max Kills in Single Turn 1 | . 1 1 . Gunslinging . | . . . . Exploded 1 | . . 1 . Melee . | . . . . Uniques/NPCs Destroyed . | . . . . Combat | -11 -10 -10 -10 -------- Run | Yrd Mat Min Sub Hostile Shots Fired 56 | . 16 27 13 Missed 19 | . 7 4 8 Damage Taken 699 | . 109 291 299 Core 259 | . 20 97 142 Absorbed by Shields . | . . . . Core Remaining (%) 100 | 100 . . . Volleys Fired 51 | . 21 23 7 Largest 2 | . 2 2 2 Hottest 55 | . 55 55 55 Shots Fired 96 | . 42 46 8 Gun 51 | . 21 23 7 Cannon 45 | . 21 23 1 Launcher . | . . . . Special . | . . . . Kinetic 96 | . 42 46 8 Thermal . | . . . . Explosive . | . . . . Electromagnetic . | . . . . Robot Hit Streak 5 | . 4 5 5 Robot Miss Streak 4 | . 3 4 1 Penetration Max . | . . . . Secondary Targets . | . . . . Shots Hit Robots 56 | . 26 24 6 Core Hits 20 | . 10 8 2 Critical Kills . | . . . . Critical Parts Destroyed 1 | . . 1 . Critical Strikes 3 | . 2 1 . Destroy 1 | . . 1 . Blast 2 | . 2 . . Melee Attacks . | . . . . Impact . | . . . . Slashing . | . . . . Piercing . | . . . . Sneak Attacks . | . . . . Combat Hostiles . | . . . . Follow-up Attacks . | . . . . Damage Inflicted 933 | . 403 470 60 Guns 339 | . 148 131 60 Cannons 496 | . 255 241 . Explosions 74 | . . 74 . Melee . | . . . . Ramming 24 | . . 24 . Kinetic 835 | . 403 372 60 Thermal 74 | . . 74 . Explosive . | . . . . Electromagnetic . | . . . . Impact . | . . . . Slashing . | . . . . Piercing . | . . . . Highest Corruption 1 | . 1 1 1 Average Corruption 1 | . 1 1 1 Corruption Purged . | . . . . Corruption Blocked . | . . . . Effects 5 | . . 4 1 Message Errors 1 | . . . 1 Matter Fused 2 | . . 2 . Heat Flow Errors 1 | . . 1 . Data Loss (minor) 1 | . . 1 . Overload Shots . | . . . . Overflow Damage . | . . . . Projectiles . | . . . . Explosions . | . . . . Melee . | . . . . Knockbacks 5 | . . 5 . Impact . | . . . . Kinetic 3 | . . 3 . Secondary 2 | . . 2 . Self-Inflicted Damage . | . . . . Shots . | . . . . Rammed 1 | . . 1 . Targets Rammed 6 | . . 6 . Kicked 5 | . . 5 . Crushed . | . . . . Highest Temperature 247 | . 41 247 . Average Temperature 42 | . 24 48 . Received Heat Transfer 267 | . 81 186 . Effects 1 | . . 1 . Energy Bleed 1 | . . 1 . Siege Activations . | . . . . Robots Corrupted . | . . . . Combat Hostiles . | . . . . Parts Fried . | . . . . Impact Corruptions . | . . . . Robots Melted . | . . . . Combat Hostiles . | . . . . Parts Melted . | . . . . Heat Transferred 100 | . . 100 . Parts Sabotaged . | . . . . Parts Stolen . | . . . . Parts Stripped . | . . . . Power Chain Reactions . | . . . . Alert | -11 -10 -10 -10 ------- Run | Yrd Mat Min Sub Peak Influence 182 | . 121 182 . Initial 46 | . . 46 . Average 64 | . 77 64 . Maximum Alert Level . | . . . . Low Security (%) 100 | 100 100 100 . Level 1 . | . . . . Level 2 . | . . . . Level 3 . | . . . . Level 4 . | . . . . Level 5 . | . . . . High Security . | . . . . Max Security . | . . . . Squads Dispatched 1 | . 1 . . Investigation 1 | . 1 . . Extermination . | . . . . Reinforcement . | . . . . Assault . | . . . . Garrison . | . . . . Intercept . | . . . . Searches Triggered . | . . . . Construction Impeded . | . . . . Haulers Reinforced . | . . . . Active Scanning Responses . | . . . . Cargo Convoy Interrupts . | . . . . Stealth | -11 -10 -10 -10 --------- Run | Yrd Mat Min Sub Distress Signals 2 | . 1 1 . Communications Jammed . | . . . . Distress Signals . | . . . . Times Spotted 20 | . 7 9 4 Peak Tracking Total 4 | . 3 2 4 Tactical Retreats 1 | . . 1 . Traps | -11 -10 -10 -10 ------- Run | Yrd Mat Min Sub Traps Triggered . | . . . . Indirectly . | . . . . Trap Hack Attempts . | . . . . Triggered . | . . . . Disarmed . | . . . . Reprogrammed . | . . . . Reused . | . . . . Traps Extracted . | . . . . Installed . | . . . . Triggered . | . . . . Machines | -11 -10 -10 -10 ---------- Run | Yrd Mat Min Sub Machines Disabled 3 | . . 3 . Max in Single Turn 1 | . . 1 . Machines Repaired . | . . . . Machines Dismantled . | . . . . Machines Sabotaged . | . . . . Overloaded Fab Kills . | . . . . Hacking | -11 -10 -10 -10 --------- Run | Yrd Mat Min Sub Machines Accessed 4 | . 4 . . Terminals 3 | . 3 . . Fabricators . | . . . . Repair Stations . | . . . . Recycling Units 1 | . 1 . . Scanalyzers . | . . . . Garrison Access . | . . . . Total Hacks 10 | . 10 . . Successful 2 | . 2 . . Failed 8 | . 8 . . Catastrophic 2 | . 2 . . Database Lockouts . | . . . . Manual 7 | . 7 . . Terminals 8 | . 8 . . Fabricators . | . . . . Repair Stations . | . . . . Recycling Units 2 | . 2 . . Scanalyzers . | . . . . Garrison Access . | . . . . Terminal Hacks 1 | . 1 . . Robot Analysis 1 | . 1 . . Fabricator Hacks . | . . . . Repair Station Hacks . | . . . . Recycling Unit Hacks . | . . . . Scanalyzer . | . . . . Garrison Access Hacks . | . . . . Unauthorized Hacks 1 | . 1 . . Terminals . | . . . . Fabricators . | . . . . Repair Stations . | . . . . Recycling Units 1 | . 1 . . Monitor 1 | . 1 . . Scanalyzers . | . . . . Garrison Access . | . . . . Data Cores Recovered . | . . . . Used . | . . . . Hacking Detections 4 | . 4 . . Full Trace Events 2 | . 2 . . Feedback Events 1 | . 1 . . Corruption 1 | . 1 . . Feedback Blocked . | . . . . Robot Schematics Acquired . | . . . . Robots Built . | . . . . Authchips . | . . . . Time . | . . . . Total Robot Build Rating . | . . . . Part Schematics Acquired . | . . . . Parts Built . | . . . . Authchips . | . . . . Time . | . . . . Total Part Build Rating . | . . . . Parts Repaired . | . . . . Time . | . . . . Parts Recycled . | . . . . Recycled Matter . | . . . . Retrieved Matter . | . . . . Retrieved Components . | . . . . Parts Scanalyzed . | . . . . Part Schematics Acquired . | . . . . Parts Damaged . | . . . . Bothacking | -11 -10 -10 -10 ------------ Run | Yrd Mat Min Sub Used RIF Installer . | . . . . Robots Hacked . | . . . . Non-combat . | . . . . Combat . | . . . . Robot Hacks Applied . | . . . . Relay Couplers Released . | . . . . Fabnet Peak Effective % . | . . . . Robots Rewired . | . . . . Allies Hacked . | . . . . Hacks Repelled . | . . . . Allies | -11 -10 -10 -10 -------- Run | Yrd Mat Min Sub Total Allies 3 | . . 3 . Largest Group 3 | . . 3 3 Highest-Rated Group 40 | . . 40 40 Highest-Rated Ally 16 | . . 16 16 Total Orders . | . . . . Ally Attacks 11 | . . 7 4 Total Damage 80 | . . 80 . Kills 1 | . . 1 . Allies Corrupted . | . . . . Allies Melted . | . . . . Intel | -11 -10 -10 -10 ------- Run | Yrd Mat Min Sub Robot Analysis Total 1 | . 1 . . Derelict Logs Recovered 2 | . . 1 1 Drone Launches . | . . . . Drone Recoveries . | . . . . Exploration | -11 -10 -10 -10 ------------- Run | Yrd Mat Min Sub Turns Passed 1232 | 44 254 858 76 Spaces Moved 923 | 40 220 613 50 Core 68 | 9 . 59 . Treads . | . . . . Legs 571 | 8 . 513 50 Wheels 284 | 23 220 41 . Hover . | . . . . Flight . | . . . . Fastest Speed 50 | 50 80 80 120 Average Speed 112 | 81 80 125 120 Slowest Speed 200 | 120 80 200 120 Overloaded Moves . | . . . . Propulsion Burnouts . | . . . . Robots Hopped . | . . . . Cave-ins Triggered . | . . . . Exploration Rate (%) 37 | 3 48 93 6 Regions Visited 3 Branch Regions 2 Pre-discovered Areas . | . . . . Known Exits Taken . | . . . . Unknown Exits Taken 3 | 1 1 1 . Scrap Searched 2 | . . 2 . Spaces Dug . | . . . . Terrain Destroyed 6 | . . 6 . Melee . | . . . . Projectile . | . . . . AOE 6 | . . 6 . Terrain Rammed . | . . . . Walls Destroyed . | . . . . Machines Disabled . | . . . . Actions | -11 -10 -10 -10 --------- Run | Yrd Mat Min Sub Total 1016 | 48 255 655 58 Wait 24 | . 13 10 1 Move 920 | 39 219 612 50 Hop . | . . . . Pick Up . | . . . . Fast Attach 11 | 7 1 3 . Attach . | . . . . Detach . | . . . . Swap . | . . . . Drop 4 | 2 1 1 . Fire 51 | . 21 23 7 Melee . | . . . . Ram 1 | . . 1 . Kick 5 | . . 5 . Crush . | . . . . Escape Stasis . | . . . . Rewire . | . . . . Trap . | . . . . Miscellaneous . | . . . . Route ------- -11/Scrapyard -10/Materials -10/Mines (discovered 2 exits: [*Mat] / [*Sub]) -10/Subcaves History --------- Turn | Location | Event 8 | -11/Scrapyard | Discovered new exit (range 16) 45 | -11/Scrapyard | Entered Materials 249 | -10/Materials | Discovered new exit (range 8) 299 | -10/Materials | Entered Mines 304 | -10/Mines | Build established: Mutant 408 | -10/Mines | Met a Derelict bent on vengeance 409 | -10/Mines | Learned Materials garrison access intel 566 | -10/Mines | Assisted by bots powering up and referring to "LRC-V3" 972 | -10/Mines | Discovered new exit (range 7) 1147 | -10/Mines | Discovered new exit (range 6) 1157 | -10/Mines | Entered Subcaves 1157 | -10/Subcaves | Accompanied by 3 allies 1163 | -10/Subcaves | Learned Materials non-interactive machine intel 1220 | -10/Subcaves | Core integrity fell below 50% 1221 | -10/Subcaves | Ambushed by Subdweller buried in earth 1221 | -10/Subcaves | Ambushed by Subdweller buried in earth 1233 | -10/Subcaves | Destroyed by 86-CAP(R) with Subdweller Shrapnel Launcher Last Messages --------------- Kicked T-07 Excavator. EXIT=FOUND LOCATION=UNKNOWN AMBIENT_HEAT=-10 GOAL=ESCAPE Acquired derelict log, extracted data. Data stored: Materials non-interactive machine intel. V=U44DCY7OW1VZHR0L=PNP6IQFEQZ,4L&/I: 86-CAP(R) emerges from the Twisted Machinery. Mercenary 1a destroyed. Trooper 1b destroyed. Subatomizers dissect the Sml. Laser. Trooper 1a destroyed. Lgt. Cannon destroyed. VK-VL7(R): "ARGHSUB!" 9O-N96(R): "ARGHSUB!" 9O-N96(R) destroyed. VK-VL7(R) destroyed. Aluminum Leg destroyed. Subatomizers dissect the Sml. Laser. Map ----- +----------------------------------------------------+ | ?????????????????????????????# ???## ##?????????? | | ?????????????????????????????#????## #??????????? | | ??????????????????????????????????# ##?????????? | | ??????????????????????????????????## #?????????? | | ??????????????????????????????????# ##?????????? | | ??????????????????????????????????## #??????????? | | ??????????????????????????????????# ##?????????? | | ??????????????????????????????????# ##????????? | | ??????????????????????????????????## #????????? | | ???????????????????????????????????# #????????? | | ???????????????????????????????????# #????????? | | ???????????????????????????????????# ##????????? | | ???????????????????????????????????# ##????????? | | ????????????????????????????????#### #????????? | | ??????????????????????????????### #????????? | | ?????????????????????# ?????## ###????????? | | ??????????????????????# ## #??????????? | | ??????????????????? ##??????????? | | ???????????????????????# ##???????????? | | ?????????????????????###### ###### ##????????????? | | ??????????????##????## # ### ;;### #?????????????? | | ??????????????# ??# ; #?????????????? | | ???????????# ## "?## %[ #?????????????? | | ???????????? ""#; * ##?????????????? | | ???????????" " R = ##??????????????? | | ?????????????? """R @ % #???????????????? | | ????????????? """" &= ;#???????????????? | | ???????????????#"" " !% #???????????????? | | ????????????????#" " #??????????????? | | ????????????????#" ; & #?????????????? | | ???????????????#" ## ##?????????????? | | ???????????????## ## #??????????????? | | ????????????????### ###??# ##??????????????? | | ??????????????????###??????### ###???????????????? | | ??????????????????????????????##?????????????????? | | ?????????????????????????????????????????????????? | | ?????????????????????????????????????????????????? | | ?????????????????????????????????????????????????? | | ?????????????????????????????????????????????????? | | ?????????????????????????????????????????????????? | | ?????????????????????????????????????????????????? | | ?????????????????????????????????????????????????? | | ?????????????????????????????????????????????????? | | ?????????????????????????????????????????????????? | | ?????????????????????????????????????????????????? | | ?????????????????????????????????????????????????? | | ?????????????????????????????????????????????????? | | ?????????????????????????????????????????????????? | | ?????????????????????????????????????????????????? | | | +----------------------------------------------------+ Best States ------------- Heat Dissipation 25 Energy Generation 14 Energy Capacity 250 Matter Stores 300 Matter Capacity 300 Sight Range 16 Terrain Scan Density 10 Evasion (%) 55 Item Schematics ----------------- None Robot Schematics ------------------ None Fabricated ------------ Nothing Alien Tech Used ----------------- None Achievements -------------- None Challenges ------------ None Game ------ Seed AluminumMiniShredder Manual? 0 Play Time 00:07:53 Cumulative 36.6 hours Start 2024.07.16 @ 20:19:11 End 2024.07.16 @ 20:26:34 Sessions 1 Manual Loads 0 Difficulty Rogue Special Mode None Game No. 84 Rogue 18 Adventurer 66 Explorer 0 Win Type - Total 0 Types 0/0/0/0/0/0/0/0/0 Lore% 28 Gallery% 31 Achievement% 29 Wizard Run 0 Options --------- Layout 0 ASCII 0 Keyboard 0 Movement Mouse Keybinds 0 Fullscreen 1 Font 24/Smallcaps Map View 76x50 Zoom Use 0% Tactical HUD 0 Map Filters NONE Filters NONE Steam 1 RUN: b6def320-6407-4987-98e5-07466b2cf6ee